bitfinex-derivatives/quotes_ETHF0:USTF0_20240901
["timestamp","ask_amount","ask_price","bid_price","bid_amount"]
[1725230338196,0.41416,2414.4,2413.8,3.21400951]
[1725230338393,3.2078,2414.5,2413.9,0.41423]
[1725230338909,0.41416,2414.4,2413.9,0.41423]
[1725230339402,3.62195,2414.5,2414.0,0.41422]
[1725230339702,0.41418,2414.3,2413.8,3.21400951]
[1725230339900,0.41424,2413.9,2413.8,0.00620951]
[1725230340103,4.1424,2413.9,2413.8,0.00620951]
[1725230340297,3.2078,2414.5,2413.9,0.41423]
[1725230340501,0.41417,2414.3,2413.8,0.42045951]
[1725230340803,3.2078,2414.5,2413.8,0.00620951]
[1725230340804,0.41416,2414.4,2413.8,0.00620951]
[1725230340999,0.41416,2414.4,2413.9,0.41424]
[1725230341409,3.2078,2414.2,2413.8,0.00620951]
[1725230341605,3.62204,2413.9,2413.8,0.00620951]
[1725230341799,3.2078,2413.9,2413.8,0.00620951]
[1725230342104,7.76444,2413.9,2413.8,0.00620951]
[1725230342400,13.76444,2413.9,2413.8,0.00620951]
[1725230342611,13.76444,2413.9,2412.3,1.03627]
[1725230342612,0.41432,2413.5,2413.0,0.41438]
[1725230342807,3.62212,2413.5,2413.0,0.41438]
[1725230343007,3.2078,2413.5,2412.8,5.36598615]
[1725230343209,3.62217,2413.2,2412.6,5.36598615]
[1725230343410,3.62217,2413.2,2412.3,3.6222]
[1725230343411,0.41438,2413.1,2412.3,3.6222]
[1725230343600,3.2078,2412.8,2412.7,0.00620951]
[1725230343795,7.52754407,2413.1,2412.7,0.00620951]
[1725230344005,3.21400951,2413.1,2412.7,0.42064951]
[1725230344404,3.21400951,2413.1,2412.7,0.00620951]
[1725230344608,3.62838951,2413.1,2412.7,0.00620951]
[1725230344806,4.144,2413.0,2412.7,0.00620951]
[1725230345005,3.62223,2412.8,2412.7,0.00620951]
[1725230345401,3.62223,2412.8,2411.8,0.4152]
[1725230345402,0.41451,2412.4,2411.8,0.41459]
[1725230345602,18.01194145,2412.8,2411.2,0.4152]
[1725230345603,0.41455,2412.1,2411.2,0.4152]
[1725230345911,3.2078,2412.0,2411.6,0.41464]
[1725230346207,3.2078,2412.0,2411.2,14.22984953]
[1725230346413,3.2078,2412.0,2411.8,0.4146]
[1725230346800,3.2078,2412.0,2411.6,0.41463]
[1725230347109,3.21400951,2412.1,2411.4,0.00620951]
[1725230347606,3.21400951,2412.1,2411.5,5.28533155]
[1725230347809,3.2078,2411.7,2411.4,0.00620951]
[1725230348202,0.00620951,2412.1,2412.0,0.41457]
[1725230348402,0.00620951,2412.1,2411.9,0.41458]
[1725230348597,0.00620951,2412.1,2411.7,0.4146]
[1725230348798,0.00620951,2412.1,2411.5,3.2078]
[1725230348799,3.21400951,2412.1,2411.5,3.2078]
[1725230349014,3.2078,2411.8,2410.4,3.2078]
[1725230349204,3.2078,2411.2,2410.4,3.2078]
[1725230349405,3.2078,2411.2,2410.4,8.549555]
[1725230349609,1.9847,2411.7,2410.5,8.56008296]
[1725230349913,4.7406772,2411.6,2410.6,3.2078]
[1725230350112,7.9484772,2411.6,2410.6,3.2078]
[1725230350314,7.1778,2410.7,2410.0,0.2]
[1725230350507,3.2078,2410.2,2409.7,3.2078]
[1725230350704,11.55616199,2410.6,2409.7,3.2078]
[1725230350932,11.55616199,2410.6,2409.8,5.43190574]
[1725230350933,7.12052316,2410.6,2409.8,5.43190574]
[1725230351209,7.12052316,2410.6,2409.7,3.2078]
[1725230351210,5.19872316,2410.6,2409.7,3.2078]
[1725230351410,4.77289558,2410.5,2409.4,3.2078]
[1725230351606,5.19872316,2410.6,2409.8,14.01097316]
[1725230351811,5.19872316,2410.6,2409.8,5.38079372]
[1725230352007,5.19872316,2410.6,2410.3,0.41485]
[1725230352203,0.00622316,2410.6,2410.5,0.41483]
[1725230352416,2.0099,2411.4,2410.3,3.2078]
[1725230352417,2.0099,2411.4,2410.4,18.4086336]
[1725230352615,3.2078,2411.9,2411.1,3.2078]
[1725230352805,3.97,2412.4,2411.1,3.2078]
[1725230352806,3.2078,2412.2,2411.1,3.2078]
[1725230353113,3.2078,2412.2,2411.2,14.4037786]
[1725230353312,5.2177,2412.5,2411.7,3.2078]
[1725230353513,0.00622316,2411.9,2411.7,3.2078]
[1725230353720,3.16e-06,2411.9,2411.8,19.3799786]
[1725230354016,3.2078,2413.3,2412.2,0.41452]
[1725230354211,3.2078,2413.3,2411.8,22.79563465]
[1725230354212,3.2078,2412.6,2411.8,12.47340934]
[1725230354417,3.97,2412.8,2411.8,12.47340934]
[1725230354418,3.2078,2412.5,2411.8,3.2078]
[1725230354609,0.25201589,2412.5,2411.8,3.2078]
[1725230354809,5.59566,2412.7,2411.8,3.2078]
[1725230354810,3.2078,2412.4,2411.8,3.2078]
[1725230355010,0.00622316,2412.4,2411.5,0.00622316]
[1725230355303,0.00622316,2412.4,2411.9,5.38477746]
[1725230355503,0.00622316,2412.4,2411.7,3.2078]
[1725230355707,0.00622316,2412.4,2412.0,5.79933746]
[1725230355910,0.00622316,2412.4,2411.8,8.89257121]
[1725230356217,3.97,2412.0,2411.5,0.00622316]
[1725230356615,3.2078,2412.1,2411.5,0.00622316]
[1725230356916,0.00622316,2412.4,2411.6,5.33541593]
[1725230357117,0.00622316,2412.4,2411.8,3.2078]
[1725230357311,0.00622316,2412.4,2411.9,3.2078]
[1725230357511,0.00622316,2412.4,2412.0,3.2078]
[1725230357812,0.00622316,2412.4,2412.1,3.2078]
[1725230358025,0.00622316,2412.4,2412.2,3.2078]
[1725230358311,7.1778,2413.2,2412.2,3.2078]
[1725230358312,3.2078,2413.2,2412.4,0.4145]
[1725230358514,3.2078,2413.2,2412.7,0.41445]
[1725230358717,0.41434,2413.4,2412.6,3.2078]
[1725230358907,4.45082296,2413.1,2412.9,0.4144]
[1725230359106,4.6150597,2413.5,2413.1,0.41437]
[1725230359307,4.095e-05,2413.5,2413.4,0.41433]
[1725230359512,4.095e-05,2413.5,2413.4,4.55753]
[1725230359712,4.095e-05,2413.5,2413.4,24.50692544]
[1725230359917,4.095e-05,2413.5,2413.4,24.92125544]
[1725230360324,1.8729,2414.9,2414.5,0.41413]
[1725230360622,3.97,2415.3,2414.3,0.41417]
[1725230360916,4.79371835,2415.2,2414.4,5.91268493]
[1725230361117,4.79371835,2415.2,2414.4,14.31498857]
[1725230361317,0.41399,2415.4,2414.4,8.81645364]
[1725230361509,0.00622316,2415.0,2414.6,0.00622316]
[1725230361711,0.00622316,2415.0,2414.9,0.41407]
[1725230361920,0.00622316,2415.0,2414.9,4.55487]
[1725230362116,0.00622316,2415.0,2414.9,24.79317831]
[1725230362517,3.16e-06,2415.0,2414.9,24.86923692]
[1725230362816,3.16e-06,2415.0,2414.9,25.28363692]
[1725230363325,3.16e-06,2415.0,2414.9,25.20757831]
[1725230364124,3.16e-06,2415.0,2414.9,9.56265467]
[1725230364422,3.16e-06,2415.0,2414.8,3.2078]
[1725230365107,3.16e-06,2415.0,2414.6,0.00622316]
[1725230365313,8.73336703,2414.9,2413.8,3.2078]
[1725230365512,8.73336703,2414.9,2414.0,0.41421]
[1725230365513,5.00664703,2414.9,2414.0,0.41421]
[1725230366022,7.17780316,2415.0,2414.4,0.41415]
[1725230366220,7.17780316,2415.0,2414.1,17.54847563]
[1725230366221,0.41409,2414.9,2414.1,17.54847563]
[1725230366421,0.41409,2414.9,2414.3,0.00622316]
[1725230366422,3.2078,2414.7,2414.3,0.00622316]
[1725230366914,3.2078,2414.4,2413.2,0.4144]
[1725230367117,3.97,2414.4,2413.5,0.4143]
[1725230367316,4.73323425,2414.3,2413.8,0.41425]
[1725230367520,3.2078,2414.5,2413.5,0.41431]
[1725230367720,3.2078,2414.5,2413.8,0.00622316]
[1725230368021,1.9897,2414.6,2413.8,0.00622316]
[1725230368022,0.41424,2413.9,2413.8,0.00622316]
[1725230368223,7.3502,2413.9,2412.8,3.2078]
[1725230368519,0.00622316,2414.2,2413.6,0.41429]
[1725230368724,0.42042316,2414.2,2413.3,0.41433]
[1725230368917,0.00622316,2414.2,2413.6,0.41429]
[1725230369118,0.00622316,2414.2,2413.7,0.00622316]
[1725230369324,0.00622316,2414.2,2413.8,0.41425]
[1725230369518,0.00622316,2414.2,2413.8,5.33942006]
[1725230370221,0.00622316,2414.2,2413.8,0.41426]
[1725230370429,0.00622316,2414.2,2414.1,0.41421]
[1725230370615,0.00622316,2414.2,2414.1,4.55661]
[1725230370815,0.00622316,2414.2,2414.1,4.1424]
[1725230371018,0.00622316,2414.2,2414.1,15.90609466]
[1725230371425,3.2078,2415.4,2414.1,24.07831455]
[1725230371624,3.62185,2415.1,2414.2,0.41418]
[1725230371923,8.25829229,2415.1,2414.3,5.34948466]
[1725230372130,3.2078,2415.1,2414.3,5.34948466]
[1725230372423,0.00622316,2414.9,2414.4,12.55951436]
[1725230372727,0.00622316,2414.9,2414.8,0.41409]
[1725230373222,0.00622316,2414.9,2414.8,9.85058116]
[1725230373438,0.00622316,2414.9,2414.8,4.1408]
[1725230373618,0.00622316,2414.9,2414.7,0.4141]
[1725230373821,0.00622316,2414.9,2414.4,3.6222]
[1725230374022,0.00622316,2414.9,2414.8,5.29569116]
[1725230374225,0.00622316,2414.9,2414.5,8.53581836]
[1725230374526,0.00622316,2414.9,2414.6,5.35163881]
[1725230374730,0.00622316,2414.9,2414.6,14.27368528]
[1725230375021,0.00622316,2414.9,2414.6,14.68780528]
[1725230375228,0.00622316,2414.9,2414.6,5.35163881]
[1725230375727,0.00622316,2414.9,2414.4,3.2078]
[1725230375932,0.00622316,2414.9,2414.1,0.4144]
[1725230375933,0.00622316,2414.9,2414.8,0.41409]
[1725230376121,0.00622316,2414.9,2414.7,5.44673655]
[1725230376323,0.00622316,2414.9,2414.8,5.40539192]
[1725230376519,0.00622316,2414.9,2414.7,5.40539192]
[1725230376822,0.00622316,2414.9,2414.3,17.15687043]
[1725230377019,0.00622316,2414.9,2414.3,14.36323043]
[1725230377234,0.00622316,2414.9,2413.9,3.6222]
[1725230377427,0.00622316,2414.9,2414.4,5.48289112]
[1725230377622,0.00622316,2414.9,2414.3,5.48289112]
[1725230377828,0.00622316,2414.9,2414.8,0.41409]
[1725230378128,0.00622316,2414.9,2414.8,5.75345754]
[1725230378323,0.00622316,2414.9,2414.8,9.89425754]
[1725230378523,3.2078,2415.9,2414.8,27.21647085]
[1725230378728,3.2078,2415.9,2415.2,0.41401]
[1725230379127,3.2078,2415.9,2415.3,0.414]
[1725230379528,3.2078,2415.9,2414.8,17.07567085]
[1725230379529,3.2078,2415.6,2415.4,0.00620977]
[1725230379831,5.14812858,2415.5,2415.4,0.00620977]
[1725230380030,9.28812858,2415.5,2415.4,0.00620977]
[1725230380232,0.41402,2415.2,2414.6,0.41412]
[1725230380628,3.2078,2415.3,2414.8,0.41408]
[1725230381030,3.2078,2415.3,2414.5,5.41251766]
[1725230381031,3.2078,2415.3,2415.1,0.41403]
[1725230381234,3.2078,2415.3,2415.0,0.00620977]
[1725230381733,0.00620977,2415.8,2415.1,5.327731]
[1725230382132,0.00620977,2415.8,2415.4,0.41398]
[1725230382329,3.2078,2415.7,2415.1,5.327731]
[1725230382530,0.00620977,2415.8,2415.6,0.41395]
[1725230382733,0.00620977,2415.8,2415.2,8.57271373]
[1725230382928,0.00620977,2415.8,2415.0,3.21400977]
[1725230383131,0.00620977,2415.8,2415.6,5.81503465]
[1725230383132,4.64712052,2415.7,2415.6,5.81503465]
[1725230383335,0.00620977,2415.8,2415.7,0.41393]
[1725230383632,3.2078,2416.7,2416.4,0.41381]
[1725230383837,5.14,2417.4,2416.5,0.4138]
[1725230384027,5.14,2417.4,2416.3,3.2078]
[1725230384028,3.2078,2417.4,2416.3,3.2078]
[1725230384223,5.01617128,2417.3,2416.3,0.41382]
[1725230384529,3.2078,2417.4,2416.4,5.31770352]
[1725230384732,0.00620977,2417.1,2416.7,0.00620977]
[1725230384931,7.35160977,2417.1,2416.7,0.00620977]
[1725230385237,3.2078,2416.8,2416.7,0.00620977]
[1725230385437,7.3454,2416.8,2416.7,0.00620977]
[1725230385834,3.2078,2416.8,2416.7,10.97196977]
[1725230386137,0.00620977,2417.1,2416.7,9.62506159]
[1725230386435,0.00620977,2417.1,2417.0,0.41371]
[1725230386735,9.77e-06,2417.1,2417.0,18.77029526]
[1725230386936,9.77e-06,2417.1,2417.0,24.77029526]
[1725230387139,9.77e-06,2417.1,2417.0,24.97507991]
[1725230387436,9.77e-06,2417.1,2417.0,27.01087991]
[1725230388031,9.77e-06,2417.1,2417.0,26.80609526]
[1725230388241,9.77e-06,2417.1,2417.0,27.0147512]
[1725230389030,5.0868,2418.7,2417.0,27.0147512]
[1725230389031,1.879,2418.7,2417.0,22.53942537]
[1725230389243,1.879,2418.7,2417.7,3.2078]
[1725230389632,1.879,2418.7,2417.9,0.41356]
[1725230390028,1.879,2418.7,2418.1,0.00620977]
[1725230390029,0.00620977,2418.5,2418.1,0.00620977]
[1725230390738,3.2078,2418.4,2418.1,0.00620977]
[1725230390928,3.62127,2418.4,2418.1,0.00620977]
[1725230391123,3.2078,2418.4,2418.1,0.00620977]
[1725230391325,3.62127,2418.4,2418.1,0.00620977]
[1725230391528,3.2078,2418.4,2418.1,0.00620977]
[1725230391723,3.62128,2418.4,2418.1,0.00620977]
[1725230391934,3.62128,2418.4,2417.3,3.2078]
[1725230391935,4.41591235,2418.3,2417.3,3.2078]
[1725230392137,0.00620977,2418.5,2417.6,0.4136]
[1725230392337,0.00620977,2418.5,2417.4,17.38571623]
[1725230392543,0.00620977,2418.5,2417.4,11.93723208]
[1725230392544,0.41356,2417.9,2417.4,11.93723208]
[1725230392836,3.2078,2418.0,2417.4,11.93723208]
[1725230392837,3.2078,2418.0,2417.5,0.41362]
[1725230393026,6.01480977,2418.5,2417.4,3.21400977]
[1725230393027,3.2078,2418.1,2417.4,3.21400977]
[1725230393348,3.2078,2418.4,2417.6,5.42186265]
[1725230393538,3.2078,2418.1,2417.6,5.42186265]
[1725230393732,3.2078,2418.1,2417.4,3.21400977]
[1725230394034,3.2078,2418.1,2417.6,0.4136]
[1725230394236,0.00620977,2418.5,2418.0,3.2078]
[1725230394437,0.00620977,2418.5,2417.7,4.136]
[1725230394438,0.00620977,2418.5,2417.7,18.03632585]
[1725230394645,0.00620977,2418.5,2418.1,5.477783]
[1725230394831,0.00620977,2418.5,2418.0,3.2078]
[1725230395029,0.00620977,2418.5,2417.7,0.4136]
[1725230395229,0.00620977,2418.5,2417.8,3.2078]
[1725230395445,0.00620977,2418.5,2417.9,0.41355]
[1725230395446,3.2078,2418.3,2417.9,0.41355]
[1725230395636,3.2078,2418.3,2417.8,16.97404106]
[1725230395843,3.2078,2418.3,2417.7,0.4136]
[1725230396141,0.00620977,2418.5,2417.5,3.6214]
[1725230396142,3.21400977,2418.5,2417.5,3.6214]
[1725230396547,3.2078,2419.5,2418.5,0.4136]
[1725230396745,3.6275566,2418.9,2418.5,3.6214]
[1725230396937,3.6275566,2419.1,2418.8,3.2078]
[1725230397134,3.6275566,2419.2,2418.8,3.2078]
[1725230397532,3.63376637,2419.2,2418.9,0.41338]
[1725230397739,3.63376637,2419.2,2418.8,3.62740977]
[1725230397941,3.63376637,2419.2,2418.9,0.41338]
[1725230398136,3.63376637,2419.2,2418.8,3.62740977]
[1725230398649,3.6275566,2418.9,2418.8,0.00620977]
[1725230398840,7.2487466,2418.9,2418.8,0.00620977]
[1725230399042,6.8353566,2418.9,2418.8,0.00620977]
[1725230399342,3.6275566,2418.9,2418.8,0.00620977]
[1725230399939,10.0409466,2418.9,2418.8,0.00620977]
[1725230400446,10.0409466,2418.9,2417.5,3.6214]
[1725230400447,14.51829323,2418.9,2417.5,3.6214]
[1725230400644,14.51829323,2418.9,2417.5,3.2078]
[1725230400645,3.62134683,2417.7,2417.5,3.2078]
[1725230400847,3.2078,2418.5,2417.6,5.36608583]
[1725230401048,2.74861683,2418.2,2418.1,0.41351]
[1725230401246,3.8278,2418.8,2418.1,4.1352]
[1725230401247,1.9575,2418.8,2418.1,4.1352]
[1725230401447,0.00620977,2418.4,2418.3,0.41349]
[1725230401638,0.00620977,2418.4,2418.2,3.2078]
[1725230402043,2.74861683,2418.3,2417.9,0.00620977]
[1725230402249,2.74861683,2418.0,2417.9,0.00620977]
[1725230402738,2.74861683,2418.0,2417.1,3.2078]
[1725230402739,10.136,2418.0,2417.1,3.2078]
[1725230402938,2.74861683,2417.5,2417.4,0.41364]
[1725230403148,0.00620977,2418.4,2417.4,0.41364]
[1725230403149,3.2078,2419.3,2417.4,7.38114765]
[1725230403341,1.31503683,2418.5,2418.4,3.62126]
[1725230404345,0.00620977,2418.7,2418.6,0.41344]
[1725230404749,3.2078,2419.4,2418.6,0.41344]
[1725230404750,3.2078,2419.7,2418.9,0.41338]
[1725230404947,1.31503683,2419.0,2418.9,0.41338]
[1725230405744,1.31503683,2419.0,2418.8,3.2078]
[1725230405950,3.2078,2418.9,2417.7,0.4136]
[1725230406146,0.41352,2418.2,2417.6,3.6214]
[1725230406350,3.62124,2418.6,2417.5,3.6214]
[1725230406655,1.30882706,2417.7,2417.5,12.18098969]
[1725230406950,1.30882706,2417.6,2417.2,3.2078]
[1725230407144,1.0337,2418.4,2416.5,3.6214]
[1725230407145,1.30882706,2417.2,2416.5,3.6214]
[1725230407544,0.00620977,2417.8,2417.1,3.2078]
[1725230407752,0.00620977,2417.8,2416.8,3.2078]
[1725230407753,1.30882706,2417.5,2416.8,3.2078]
[1725230408048,1.30882706,2417.5,2417.2,0.41367]
[1725230408242,1.30882706,2417.5,2416.9,13.9248518]
[1725230408446,1.30882706,2417.3,2417.1,3.62149]
[1725230409146,1.30882706,2417.3,2417.1,3.2078]
[1725230409349,1.30882706,2417.2,2416.6,0.00620977]
[1725230409547,1.30261729,2416.7,2415.8,3.6222]
[1725230409748,1.30261729,2416.1,2415.8,0.4144]
[1725230409954,1.30261729,2415.9,2415.5,0.4144]
[1725230410145,0.41384,2416.3,2415.4,0.41398]
[1725230410146,1.30261729,2415.6,2415.4,0.41398]
[1725230410344,1.30261729,2415.5,2415.4,0.41398]
[1725230410967,0.00620977,2415.7,2415.4,10.14]
[1725230411150,0.00620977,2415.7,2415.3,2.0251]
[1725230411151,1.30882706,2415.7,2415.5,3.2078]
[1725230411353,0.00620977,2415.7,2415.6,0.41395]
[1725230411541,9.77e-06,2415.7,2415.6,8.52395]
[1725230411748,9.77e-06,2415.7,2415.6,28.51539254]
[1725230412055,1.9704,2417.2,2416.8,0.41374]
[1725230412256,1.30261729,2416.8,2416.5,3.62158]
[1725230412443,1.30261729,2416.8,2416.5,3.2078]
[1725230412756,1.30261729,2416.6,2416.2,3.2078]
[1725230412948,1.9704,2417.2,2416.2,3.2078]
[1725230412949,1.30261729,2416.4,2416.2,3.2078]
[1725230413143,1.30261729,2416.4,2416.3,8.60892472]
[1725230413454,0.00620977,2416.6,2416.3,18.11955467]
[1725230413645,1.30261729,2416.4,2416.2,0.00620977]
[1725230413846,0.00620977,2416.6,2416.5,0.4138]
[1725230414042,1.30261729,2416.5,2416.3,8.58002995]
[1725230414246,1.30261729,2416.5,2416.4,0.41381]
[1725230414450,0.00620977,2416.6,2416.5,0.4138]
[1725230414654,3.2078,2418.1,2416.5,8.00542169]
[1725230414857,5.8251,2418.7,2416.5,8.00542169]
[1725230414858,0.44723729,2417.5,2417.2,7.1778]
[1725230415046,0.44723729,2417.5,2417.3,0.41365]
[1725230415244,0.44723729,2417.3,2417.2,3.2078]
[1725230415458,0.44723729,2417.5,2417.2,3.2078]
[1725230415647,3.2078,2418.1,2417.3,5.31264604]
[1725230415955,0.44723729,2417.3,2417.2,3.62147]
[1725230416158,0.44723729,2417.3,2417.2,3.2078]
[1725230416353,0.44723729,2417.3,2417.1,0.00620977]
[1725230416561,0.44723729,2417.2,2417.1,0.00620977]
[1725230417051,0.44723729,2417.2,2417.1,0.41989977]
[1725230417257,0.00620977,2417.6,2417.1,0.00620977]
[1725230417453,0.44723729,2417.2,2417.1,0.00620977]
[1725230417658,0.00620977,2417.6,2417.4,0.41363]
[1725230417849,0.00620977,2417.6,2417.5,3.62142]
[1725230418048,0.00620977,2417.6,2417.5,17.74463304]
[1725230418249,0.00620977,2417.6,2417.5,7.75822]
[1725230418479,0.00620977,2417.6,2417.5,7.3446]
[1725230418654,0.45344706,2417.6,2417.5,3.2078]
[1725230418855,0.00620977,2417.6,2417.5,7.75822]
[1725230419060,0.00620977,2417.6,2417.5,7.3446]
[1725230419561,0.00620977,2417.6,2417.5,7.75822]
[1725230419758,0.00620977,2417.6,2417.5,7.3446]
[1725230420661,0.00620977,2417.6,2417.5,19.21850178]
[1725230420851,9.77e-06,2417.6,2417.5,27.79688877]
[1725230421050,9.77e-06,2417.6,2417.5,28.90694099]
[1725230421256,2.0192,2419.4,2417.5,28.90694099]
[1725230421257,3.2078,2419.7,2418.7,0.41342]
[1725230421462,0.44723729,2418.6,2418.5,3.2078]
[1725230421652,0.44723729,2418.6,2418.2,3.2078]
[1725230421852,0.44723729,2418.3,2418.2,3.2078]
[1725230422047,0.44723729,2418.3,2418.2,12.10669563]
[1725230422248,0.44723729,2418.3,2418.2,3.62131]
[1725230422457,0.0040645,2418.5,2418.2,7.75651]
[1725230422664,0.45130179,2418.5,2418.4,0.41347]
[1725230423260,0.0040645,2418.5,2418.4,9.87762294]
[1725230423453,0.0040645,2418.5,2418.4,4.1352]
[1725230423652,0.0040645,2418.5,2418.2,3.2078]
[1725230423653,0.45130179,2418.5,2418.2,3.2078]
[1725230423962,0.44723729,2418.3,2418.2,3.2078]
[1725230424350,0.0040645,2418.5,2418.4,0.41347]
[1725230424756,0.0040645,2418.5,2418.4,24.68402685]
[1725230424960,0.0040645,2418.5,2418.4,24.60806954]
[1725230425154,0.0040645,2418.5,2418.4,24.68402624]
[1725230425554,4.5e-06,2418.5,2418.4,24.68402624]
[1725230425750,3.62096,2420.3,2418.5,3.2078]
[1725230425955,5.00258,2421.0,2419.9,3.2078]
[1725230425956,2.39202,2420.5,2419.9,3.2078]
[1725230426264,0.44723729,2420.0,2419.5,3.2078]
[1725230426564,0.44723729,2419.7,2419.6,5.90800997]
[1725230426756,1.9789,2420.5,2419.6,10.04080997]
[1725230426952,0.44723729,2419.7,2419.5,3.2078]
[1725230427260,0.44723729,2419.6,2419.5,3.2078]
[1725230427853,0.44723729,2419.6,2419.5,3.62108]
[1725230428360,0.41313,2420.4,2419.5,12.67191034]
[1725230428560,1.9789,2420.5,2419.6,0.41326]
[1725230428561,0.44723729,2419.8,2419.6,0.41326]
[1725230428755,0.44723729,2419.8,2419.7,0.41325]
[1725230429158,0.44723729,2419.8,2419.5,8.53911034]
[1725230429565,1.9789,2420.5,2419.7,3.97]
[1725230429858,0.44723729,2420.1,2419.9,3.2078]
[1725230430066,1.9789,2420.5,2419.9,3.2078]
[1725230430363,0.44723729,2420.0,2419.9,3.2078]
[1725230430758,3.2078,2421.0,2419.9,3.2078]
[1725230430759,3.2078,2421.3,2419.9,18.67422479]
[1725230430976,0.44723729,2420.5,2420.3,3.97]
[1725230431264,5.74528194,2421.2,2420.4,3.2078]
[1725230431458,3.2078,2420.9,2420.4,3.2078]
[1725230431657,5.74528194,2421.2,2419.8,0.4136]
[1725230431658,0.44723729,2420.5,2419.8,0.4136]
[1725230431859,2.0248,2421.3,2420.2,3.2078]
[1725230431860,5.12586194,2420.8,2420.2,3.2078]
[1725230432055,0.44723729,2420.1,2420.0,5.33115075]
[1725230432262,0.44723729,2420.0,2419.9,3.2078]
[1725230432465,0.44723729,2420.1,2419.9,7.1778]
[1725230432666,0.44723729,2420.0,2419.9,3.2078]
[1725230433359,5.2388,2420.9,2419.9,7.3398]
[1725230433563,0.44723729,2420.3,2420.1,0.41317]
[1725230433761,0.44723729,2420.3,2420.0,0.41319]
[1725230433965,0.44723729,2420.2,2419.9,8.51539388]
[1725230434162,0.44723729,2420.0,2419.9,3.2078]
[1725230434563,1.03253,2421.2,2419.9,3.2078]
[1725230434564,3.2078,2421.6,2419.9,21.59215272]
[1725230434760,2.0071,2421.8,2421.2,3.2078]
[1725230434965,0.41292,2421.7,2421.2,3.2078]
[1725230435165,2.0071,2421.8,2421.2,3.2078]
[1725230435359,2.0071,2421.8,2420.8,3.97]
[1725230435360,0.41297,2421.4,2420.9,3.2078]
[1725230435668,0.41295,2421.5,2420.9,3.2078]
[1725230435865,0.41293,2421.6,2420.9,3.2078]
[1725230436064,7.59532738,2421.7,2420.9,3.2078]
[1725230436267,4.38752738,2421.7,2420.9,3.2078]
[1725230436471,4.38752738,2421.7,2421.0,0.41302]
[1725230436666,4.38752738,2421.7,2420.9,3.2078]
[1725230436966,4.38752738,2421.7,2421.0,0.41303]
[1725230436967,4.80043738,2421.7,2421.0,0.41303]
[1725230437263,8.00824738,2421.7,2421.0,0.41302]
[1725230437467,7.59532738,2421.7,2420.9,3.2078]
[1725230437665,7.59532738,2421.7,2421.2,3.2078]
[1725230437666,0.41291,2421.7,2421.2,3.2078]
[1725230437866,2.42,2421.8,2421.2,3.2078]
[1725230438070,2.0071,2421.8,2421.2,3.2078]
[1725230438267,0.41295,2421.5,2421.2,3.2078]
[1725230438574,0.41291,2421.7,2421.2,3.2078]
[1725230438770,0.41293,2421.6,2421.2,3.2078]
[1725230438961,6.1367,2421.8,2421.2,3.2078]
[1725230439162,4.34182933,2421.7,2421.2,3.2078]
[1725230439370,0.41293,2421.6,2421.2,3.2078]
[1725230439577,2.0071,2421.8,2421.2,3.2078]
[1725230439866,0.41294,2421.5,2421.2,3.2078]
[1725230440068,3.2078,2421.6,2421.2,3.2078]
[1725230440266,0.41295,2421.5,2421.2,3.2078]
[1725230440462,6.1367,2421.8,2421.2,3.2078]
[1725230440463,0.41293,2421.6,2421.2,3.2078]
[1725230440663,0.41292,2421.7,2421.2,3.2078]
[1725230441061,2.42,2421.8,2421.3,0.41297]
[1725230441264,2.0071,2421.8,2421.3,0.41297]
[1725230441477,2.41999,2421.8,2421.2,3.62079]
[1725230441669,2.41999,2421.8,2421.2,3.2078]
[1725230441670,2.42,2421.8,2421.2,3.2078]
[1725230441971,0.41289,2421.8,2421.3,0.41296]
[1725230442268,0.41288,2421.9,2421.3,0.41297]
[1725230442471,1.8673,2422.2,2421.5,3.2078]
[1725230442771,0.4131,2420.6,2420.5,0.00619668]
[1725230442976,3.2078,2420.6,2419.8,3.2078]
[1725230443168,1.8966,2420.5,2419.8,3.2078]
[1725230443371,2.30971,2420.5,2419.9,0.4132]
[1725230443674,1.8966,2420.5,2420.1,0.41317]
[1725230443876,3.2078,2421.1,2420.1,0.41317]
[1725230443877,0.41308,2420.7,2420.1,0.41317]
[1725230444071,0.00615307,2420.6,2420.2,0.00619668]
[1725230444268,0.00615307,2420.6,2420.2,17.09765705]
[1725230444572,0.41315,2420.3,2420.2,3.21399668]
[1725230444767,4.54515,2420.3,2420.2,3.21399668]
[1725230445375,4.54515,2420.3,2419.2,4.3836]
[1725230445376,0.41323,2419.8,2419.5,3.2078]
[1725230445581,0.41326,2419.7,2419.1,0.41335]
[1725230445875,0.41326,2419.7,2418.7,0.4136]
[1725230445876,0.41334,2419.2,2418.7,0.4136]
[1725230446368,0.00619668,2419.2,2418.7,0.41979668]
[1725230446568,0.00619668,2419.2,2419.1,0.41335]
[1725230446866,6.24612,2420.2,2419.1,5.30977037]
[1725230446867,5.2132,2420.2,2419.1,5.30977037]
[1725230447063,3.2078,2420.2,2419.9,0.41321]
[1725230447271,3.2078,2420.2,2419.5,3.2078]
[1725230447668,3.2078,2420.2,2419.2,3.2078]
[1725230447864,0.41326,2419.7,2419.2,3.2078]
[1725230448070,0.41324,2419.8,2419.2,3.2078]
[1725230448274,0.41327,2419.6,2419.2,3.2078]
[1725230448506,0.00615307,2419.9,2419.2,3.2078]
[1725230448507,3.2078,2419.8,2419.2,3.2078]
[1725230448670,0.00615307,2419.9,2419.8,0.41323]
[1725230448865,3.2078,2421.1,2420.6,0.41308]
[1725230449070,3.2078,2421.1,2419.8,4.44288682]
[1725230449071,3.2078,2421.1,2420.4,3.2078]
[1725230449272,5.0801,2421.7,2420.7,8.63386724]
[1725230449473,2.0381,2421.8,2421.1,0.413]
[1725230449674,2.0381,2421.8,2421.0,7.1778]
[1725230449874,4.78158792,2421.7,2421.2,0.00619668]
[1725230450075,0.41291,2421.7,2421.2,0.00619668]
[1725230450273,2.0381,2421.8,2421.2,0.41918668]
[1725230450471,3.2078,2422.1,2421.3,0.41298]
[1725230450672,0.41286,2422.0,2421.3,0.41298]
[1725230450878,0.41286,2422.0,2421.2,0.41917668]
[1725230451075,0.41286,2422.0,2421.3,0.41297]
[1725230451282,3.9104,2422.4,2421.6,3.2078]
[1725230451579,4.23954,2423.0,2421.6,3.2078]